[Event "GER-ch Blitz 2019"]
[Site "Magdeburg"]
[Date "2019.05.25"]
[Round "17.13"]
[White "Svane, Frederik"]
[Black "Stein, Robert"]
[Result "0-1"]
[ECO "C84"]
[WhiteElo "2342"]
[BlackElo "2318"]
[Annotator "NA"]
[PlyCount "90"]
[EventDate "2019.05.25"]
[EventType "tourn"]
[EventCountry "GER"]
[Tiebreak "Number of wins+Number of black wins"]
[SourceTitle "playchess.com"]
[Source "ChessBase"]
[SourceQuality "1"]
[TimeControl "180+2"]

1. e4 {[%emt 0:00:00]} e5 {[%emt 0:00:00]} 2. Nf3 {[%emt 0:00:01]} Nc6 {
[%emt 0:00:00]} 3. Bb5 {[%emt 0:00:01]} a6 {[%emt 0:00:00]} 4. Ba4 {[%emt 0:00:
00]} Nf6 {[%emt 0:00:00]} 5. O-O Be7 6. d3 {[%emt 0:00:03]} b5 {[%emt 0:00:02]}
7. Bb3 {[%emt 0:00:01]} O-O {[%emt 0:00:01]} 8. Nc3 {[%emt 0:00:01]} d6 {
[%emt 0:00:04]} 9. a3 {[%emt 0:00:00]} Na5 {[%emt 0:00:02]} 10. Ba2 {[%emt 0:
00:01]} Be6 {[%emt 0:00:01]} 11. b4 {[%emt 0:00:06]} Bxa2 {[%emt 0:00:02]} 12.
Rxa2 {[%emt 0:00:02]} Nc6 {[%emt 0:00:03]} 13. Bg5 {[%emt 0:00:01]} h6 {
[%emt 0:00:01]} 14. Bxf6 {[%emt 0:00:04]} Bxf6 {[%emt 0:00:01]} 15. Nd5 {
[%emt 0:00:02]} Bg5 {[%emt 0:00:09]} 16. a4 {[%emt 0:00:22]} Ne7 {[%emt 0:00:
01]} 17. c4 {[%emt 0:00:18]} c6 {[%emt 0:00:06]} 18. Nc3 {[%emt 0:00:44]} bxc4
{[%emt 0:01:04]} 19. dxc4 Qc7 20. Nxg5 {[%emt 0:00:52]} hxg5 {[%emt 0:00:01]}
21. Qd2 {[%emt 0:00:01]} f6 {[%emt 0:00:04]} 22. b5 {[%emt 0:00:23]} Rfd8 {
[%emt 0:00:45]} 23. Rb1 {[%emt 0:00:10]} cxb5 {[%emt 0:00:19]} 24. cxb5 {
[%emt 0:00:10]} axb5 {[%emt 0:00:10]} 25. axb5 {[%emt 0:00:01]} Rxa2 {[%emt 0:
00:06]} 26. Qxa2+ {[%emt 0:00:01]} Kh7 {[%emt 0:00:04]} 27. Qb3 {[%emt 0:00:12]
} Qb7 {[%emt 0:00:08]} 28. g3 {[%emt 0:00:09]} Rd7 {[%emt 0:00:13]} 29. b6 {
[%emt 0:00:01]} d5 {[%emt 0:00:01]} 30. exd5 {[%emt 0:00:02]} Nxd5 {[%emt 0:00:
01]} 31. Rd1 {[%emt 0:00:10]} Nxc3 {[%emt 0:00:06]} 32. Rxd7 {[%emt 0:00:01]}
Qxd7 {[%emt 0:00:09]} 33. Qxc3 {[%emt 0:00:01]} Qd1+ {[%emt 0:00:01]} 34. Kg2 {
[%emt 0:00:01]} Qd5+ {[%emt 0:00:00]} 35. Qf3 {[%emt 0:00:02]} e4 {[%emt 0:00:
01]} 36. Qe3 {[%emt 0:00:01]} Qc6 {[%emt 0:00:02]} 37. h3 {[%emt 0:00:02]} Kg6
{[%emt 0:00:01]} 38. Kh2 {[%emt 0:00:02]} f5 {[%emt 0:00:11]} 39. Qd4 {[%emt 0:
00:04]} f4 {[%emt 0:00:07]} 40. Qb2 {[%emt 0:00:02]} Qb7 {[%emt 0:00:01]} 41.
Qb4 {[%emt 0:00:03]} e3 {[%emt 0:00:05]} 42. fxe3 {[%emt 0:00:03]} Qf3 {
[%emt 0:00:02]} 43. Qd6+ {[%emt 0:00:01]} Kh5 {[%emt 0:00:03]} 44. Qd2 {
[%emt 0:00:03]} Qxg3+ {[%emt 0:00:03]} 45. Kh1 {[%emt 0:00:01]} Qf3+ 0-1

[Event "GER-ch Blitz 2019"]
[Site "Magdeburg"]
[Date "2019.05.25"]
[Round "17.14"]
[White "Schmaltz, Roland"]
[Black "Schulze, Marc"]
[Result "0-1"]
[ECO "B27"]
[WhiteElo "2461"]
[BlackElo "2220"]
[Annotator "ChessBase"]
[PlyCount "156"]
[EventDate "2019.05.25"]
[EventType "tourn"]
[EventCountry "GER"]
[Tiebreak "Number of wins+Number of black wins"]
[SourceTitle "playchess.com"]
[Source "ChessBase"]
[SourceQuality "1"]
[TimeControl "180+2"]

1. e4 {[%emt 0:00:00]} c5 {[%emt 0:00:00]} 2. Nf3 {[%emt 0:00:00]} g6 {[%emt 0:
00:00]} 3. d4 {[%emt 0:00:00]} cxd4 {[%emt 0:00:00]} 4. Nxd4 {[%emt 0:00:00]}
Bg7 {[%emt 0:00:01]} 5. Be2 {[%emt 0:00:01]} Nc6 6. Nb3 Nf6 {[%emt 0:00:02]} 7.
Nc3 {[%emt 0:00:02]} O-O {[%emt 0:00:01]} 8. O-O {[%emt 0:00:01]} d6 {[%emt 0:
00:00]} 9. Re1 {[%emt 0:00:00]} a6 {[%emt 0:00:04]} 10. Bf1 {[%emt 0:00:02]}
Be6 {[%emt 0:00:08]} 11. Nd5 {[%emt 0:00:01]} Rc8 {[%emt 0:00:17]} 12. c3 {
[%emt 0:00:09]} Re8 {[%emt 0:00:07]} 13. Bg5 {[%emt 0:00:01]} Bxd5 {[%emt 0:00:
04]} 14. exd5 {[%emt 0:00:02]} Na5 {[%emt 0:00:04]} 15. h3 {[%emt 0:00:25]} Nc4
{[%emt 0:00:13]} 16. Bxc4 {[%emt 0:00:02]} Rxc4 {[%emt 0:00:01]} 17. Qd3 {
[%emt 0:00:01]} Rc8 {[%emt 0:00:10]} 18. Re2 {[%emt 0:00:02]} h6 {[%emt 0:00:
10]} 19. Bh4 {[%emt 0:00:07]} Qd7 {[%emt 0:00:04]} 20. Rae1 {[%emt 0:00:05]}
Rc7 {[%emt 0:00:09]} 21. Nd2 {[%emt 0:00:07]} Qa4 {[%emt 0:00:06]} 22. Bxf6 {
[%emt 0:00:02]} Bxf6 {[%emt 0:00:06]} 23. Ne4 {[%emt 0:00:02]} Be5 {[%emt 0:00:
02]} 24. b3 {[%emt 0:00:12]} Qd7 {[%emt 0:00:04]} 25. f4 {[%emt 0:00:05]} Bg7 {
[%emt 0:00:05]} 26. c4 {[%emt 0:00:05]} b5 {[%emt 0:00:13]} 27. cxb5 {[%emt 0:
00:09]} axb5 {[%emt 0:00:05]} 28. Kh1 {[%emt 0:00:10]} Rec8 {[%emt 0:00:07]}
29. Qf3 {[%emt 0:00:08]} Qf5 {[%emt 0:00:12]} 30. Ng3 {[%emt 0:00:02]} Qf6 {
[%emt 0:00:06]} 31. f5 {[%emt 0:00:03]} Rc3 {[%emt 0:00:06]} 32. Qf4 {[%emt 0:
00:14]} Qd4 {[%emt 0:00:19]} 33. Ne4 {[%emt 0:00:27]} Rc2 {[%emt 0:00:14]} 34.
fxg6 {[%emt 0:00:23]} fxg6 {[%emt 0:00:02]} 35. Rxc2 {[%emt 0:00:10]} Rxc2 {
[%emt 0:00:02]} 36. Qg4 {[%emt 0:00:04]} Kh7 {[%emt 0:00:07]} 37. Qh4 {[%emt 0:
00:05]} Qe5 {[%emt 0:00:12]} 38. Nd2 {[%emt 0:00:24]} Qf6 {[%emt 0:00:05]} 39.
Qxf6 {[%emt 0:00:05]} Bxf6 {[%emt 0:00:01]} 40. Ne4 {[%emt 0:00:03]} Be5 {
[%emt 0:00:03]} 41. a4 {[%emt 0:00:01]} bxa4 {[%emt 0:00:00]} 42. bxa4 Ra2 {
[%emt 0:00:01]} 43. g4 {[%emt 0:00:07]} Rxa4 {[%emt 0:00:01]} 44. Kg2 {[%emt 0:
00:01]} Ra5 {[%emt 0:00:00]} 45. Rd1 {[%emt 0:00:01]} Ra4 {[%emt 0:00:01]} 46.
Kf3 {[%emt 0:00:01]} Ra3+ {[%emt 0:00:01]} 47. Kg2 {[%emt 0:00:01]} Kg7 {
[%emt 0:00:01]} 48. Rf1 {[%emt 0:00:02]} Rd3 {[%emt 0:00:02]} 49. g5 {[%emt 0:
00:03]} Rxd5 {[%emt 0:00:05]} 50. gxh6+ {[%emt 0:00:01]} Kxh6 {[%emt 0:00:07]}
51. Rf7 e6 52. h4 {[%emt 0:00:04]} Rd4 {[%emt 0:00:07]} 53. Ng5 {[%emt 0:00:01]
} Rxh4 {[%emt 0:00:02]} 54. Nxe6 {[%emt 0:00:02]} Rg4+ {[%emt 0:00:01]} 55. Kf3
{[%emt 0:00:01]} Rg3+ {[%emt 0:00:01]} 56. Ke4 {[%emt 0:00:00]} Rg1 {[%emt 0:
00:03]} 57. Rf8 {[%emt 0:00:02]} Kh5 {[%emt 0:00:02]} 58. Rg8 {[%emt 0:00:02]}
g5 {[%emt 0:00:02]} 59. Nf8 {[%emt 0:00:04]} Kg4 {[%emt 0:00:01]} 60. Ne6 {
[%emt 0:00:01]} Kh5 {[%emt 0:00:02]} 61. Kd5 {[%emt 0:00:03]} g4 {[%emt 0:00:
02]} 62. Ke4 {[%emt 0:00:02]} g3 {[%emt 0:00:03]} 63. Rg5+ {[%emt 0:00:02]} Kh4
{[%emt 0:00:01]} 64. Rg6 {[%emt 0:00:02]} Kh3 {[%emt 0:00:02]} 65. Kf3 {
[%emt 0:00:01]} Rf1+ {[%emt 0:00:01]} 66. Ke2 {[%emt 0:00:01]} Rf6 {[%emt 0:00:
02]} 67. Rxf6 {[%emt 0:00:02]} Bxf6 {[%emt 0:00:01]} 68. Nf4+ {[%emt 0:00:00]}
Kh2 {[%emt 0:00:01]} 69. Kf3 {[%emt 0:00:01]} Be5 {[%emt 0:00:02]} 70. Ng2 d5
71. Ne3 {[%emt 0:00:02]} d4 {[%emt 0:00:02]} 72. Ng4+ {[%emt 0:00:01]} Kh1 {
[%emt 0:00:03]} 73. Nxe5 {[%emt 0:00:02]} g2 {[%emt 0:00:01]} 74. Nd3 {[%emt 0:
00:05]} g1=Q {[%emt 0:00:02]} 75. Nf2+ {[%emt 0:00:00]} Kh2 {[%emt 0:00:02]}
76. Ng4+ {[%emt 0:00:01]} Kh3 {[%emt 0:00:00]} 77. Nf2+ Kh4 78. Ne4 {[%emt 0:
00:04]} d3 {[%emt 0:00:03]} 0-1

[Event "GER-ch Blitz 2019"]
[Site "Magdeburg"]
[Date "2019.05.25"]
[Round "17.15"]
[White "Zelbel, Patrick"]
[Black "Kopylov, Daniel"]
[Result "1-0"]
[ECO "B22"]
[WhiteElo "2439"]
[BlackElo "2263"]
[Annotator "NA"]
[PlyCount "73"]
[EventDate "2019.05.25"]
[EventType "tourn"]
[EventCountry "GER"]
[Tiebreak "Number of wins+Number of black wins"]
[SourceTitle "playchess.com"]
[Source "ChessBase"]
[SourceQuality "1"]
[TimeControl "180+2"]

1. e4 {[%emt 0:00:00]} c5 {[%emt 0:00:00]} 2. c3 {[%emt 0:00:02]} d5 {[%emt 0:
00:01]} 3. exd5 {[%emt 0:00:00]} Qxd5 {[%emt 0:00:01]} 4. Nf3 {[%emt 0:00:01]}
Nf6 {[%emt 0:00:01]} 5. Na3 {[%emt 0:00:00]} e6 {[%emt 0:00:03]} 6. d4 {
[%emt 0:00:02]} cxd4 {[%emt 0:00:02]} 7. Nb5 {[%emt 0:00:01]} Qd8 {[%emt 0:00:
01]} 8. Nbxd4 {[%emt 0:00:05]} Be7 {[%emt 0:00:07]} 9. Be2 {[%emt 0:00:01]} O-O
{[%emt 0:00:02]} 10. Bf4 {[%emt 0:00:05]} Nd5 {[%emt 0:00:08]} 11. Bg3 {
[%emt 0:00:02]} Nc6 {[%emt 0:00:03]} 12. O-O {[%emt 0:00:06]} Bd7 {[%emt 0:00:
20]} 13. Nxc6 {[%emt 0:00:08]} Bxc6 {[%emt 0:00:03]} 14. Ne5 {[%emt 0:00:03]}
Rc8 {[%emt 0:00:03]} 15. Bf3 {[%emt 0:00:10]} Bf6 {[%emt 0:00:05]} 16. Nxc6 {
[%emt 0:00:06]} bxc6 {[%emt 0:00:07]} 17. Qb3 {[%emt 0:00:05]} Qb6 {[%emt 0:00:
05]} 18. Rfd1 {[%emt 0:00:04]} h6 {[%emt 0:00:05]} 19. Rd2 {[%emt 0:00:07]} Bg5
{[%emt 0:00:13]} 20. Rd4 {[%emt 0:00:09]} c5 {[%emt 0:00:21]} 21. Rdd1 {
[%emt 0:00:07]} c4 {[%emt 0:00:17]} 22. Qxb6 {[%emt 0:00:11]} Nxb6 {[%emt 0:00:
01]} 23. Bb7 {[%emt 0:00:02]} Rcd8 {[%emt 0:00:06]} 24. Bd6 {[%emt 0:00:03]}
Rxd6 {[%emt 0:00:34]} 25. Rxd6 {[%emt 0:00:01]} Rb8 {[%emt 0:00:01]} 26. Ba6 {
[%emt 0:00:12]} Na4 {[%emt 0:00:19]} 27. Bxc4 {[%emt 0:00:28]} Rxb2 {[%emt 0:
00:03]} 28. Ra6 {[%emt 0:00:16]} Nxc3 {[%emt 0:00:02]} 29. Rxa7 {[%emt 0:00:02]
} Bf6 {[%emt 0:00:11]} 30. Rc1 {[%emt 0:00:07]} g6 {[%emt 0:00:06]} 31. g3 {
[%emt 0:00:02]} Ne4 {[%emt 0:00:02]} 32. Bxe6 {[%emt 0:00:14]} Nd6 {[%emt 0:00:
22]} 33. Bd5 {[%emt 0:00:12]} Bd4 {[%emt 0:00:02]} 34. Ra8+ {[%emt 0:00:07]}
Kg7 {[%emt 0:00:01]} 35. Rf1 {[%emt 0:00:04]} Nb5 {[%emt 0:00:01]} 36. Rb8 {
[%emt 0:00:06]} Rb4 {[%emt 0:00:07]} 37. a4 {[%emt 0:00:04]} 1-0

[Event "GER-ch Blitz 2019"]
[Site "Magdeburg"]
[Date "2019.05.25"]
[Round "18.1"]
[White "Heistermann, Till"]
[Black "Gustafsson, Jan"]
[Result "0-1"]
[ECO "A15"]
[WhiteElo "2181"]
[BlackElo "2639"]
[Annotator "RC"]
[PlyCount "40"]
[EventDate "2019.05.25"]
[EventType "tourn"]
[EventCountry "GER"]
[Tiebreak "Number of wins+Number of black wins"]
[SourceTitle "playchess.com"]
[Source "ChessBase"]
[SourceQuality "1"]
[TimeControl "180+2"]

1. c4 {[%emt 0:00:00]} Nf6 {[%emt 0:00:02]} 2. g3 {[%emt 0:00:00]} c6 {[%emt 0:
00:06]} 3. Nf3 {[%emt 0:00:02]} d5 {[%emt 0:00:01]} 4. b3 {[%emt 0:00:01]} dxc4
{[%emt 0:00:09]} 5. bxc4 {[%emt 0:00:01]} e5 {[%emt 0:00:01]} 6. d3 {[%emt 0:
00:15]} e4 {[%emt 0:00:03]} 7. dxe4 Qxd1+ {[%emt 0:00:02]} 8. Kxd1 {[%emt 0:00:
31]} Nxe4 {[%emt 0:00:05]} 9. Be3 {[%emt 0:00:02]} Be6 {[%emt 0:00:07]} 10.
Nbd2 {[%emt 0:00:03]} Nxd2 {[%emt 0:00:04]} 11. Nxd2 {[%emt 0:00:02]} Nd7 {
[%emt 0:00:07]} 12. Kc2 {[%emt 0:00:05]} Bb4 {[%emt 0:00:10]} 13. Rb1 {[%emt 0:
00:27]} Bf5+ {[%emt 0:00:02]} 14. Kc1 {[%emt 0:00:02]} Bxb1 {[%emt 0:00:05]}
15. Kxb1 {[%emt 0:00:02]} O-O {[%emt 0:00:09]} 16. Kc2 {[%emt 0:00:04]} Rfe8 {
[%emt 0:00:03]} 17. Bd4 {[%emt 0:00:22]} Rad8 {[%emt 0:00:12]} 18. e3 {[%emt 0:
00:01]} c5 {[%emt 0:00:22]} 19. Bc3 {[%emt 0:00:01]} Ne5 {[%emt 0:00:07]} 20.
Nb3 {[%emt 0:00:14]} Ng4 {[%emt 0:00:04]} 0-1

[Event "GER-ch Blitz 2019"]
[Site "Magdeburg"]
[Date "2019.05.25"]
[Round "18.2"]
[White "Barzen, Pascal"]
[Black "Braeuning, Rudolf Wilhelm"]
[Result "1/2-1/2"]
[ECO "B24"]
[WhiteElo "2292"]
[BlackElo "2285"]
[Annotator "NA"]
[PlyCount "81"]
[EventDate "2019.05.25"]
[EventType "tourn"]
[EventCountry "GER"]
[Tiebreak "Number of wins+Number of black wins"]
[SourceTitle "playchess.com"]
[Source "ChessBase"]
[SourceQuality "1"]
[TimeControl "180+2"]

1. e4 {[%emt 0:00:00]} c5 {[%emt 0:00:00]} 2. Nc3 {[%emt 0:00:00]} Nc6 {
[%emt 0:00:00]} 3. g3 {[%emt 0:00:01]} Rb8 {[%emt 0:00:01]} 4. Bg2 {[%emt 0:00:
01]} b5 5. d3 g6 {[%emt 0:00:04]} 6. f4 {[%emt 0:00:01]} Bg7 {[%emt 0:00:01]}
7. Nf3 {[%emt 0:00:00]} b4 {[%emt 0:00:04]} 8. Ne2 {[%emt 0:00:01]} e6 {
[%emt 0:00:11]} 9. O-O {[%emt 0:00:05]} Nge7 {[%emt 0:00:00]} 10. g4 {[%emt 0:
00:08]} d5 {[%emt 0:00:13]} 11. Ng3 {[%emt 0:00:15]} dxe4 {[%emt 0:00:30]} 12.
Nxe4 {[%emt 0:00:02]} O-O {[%emt 0:00:04]} 13. Kh1 {[%emt 0:00:10]} Qa5 {
[%emt 0:00:22]} 14. Be3 {[%emt 0:00:05]} Bxb2 {[%emt 0:00:06]} 15. Nxc5 {
[%emt 0:00:10]} Nd5 {[%emt 0:00:11]} 16. Bf2 {[%emt 0:00:23]} Nxf4 {[%emt 0:00:
07]} 17. Rb1 {[%emt 0:00:11]} Bg7 {[%emt 0:00:07]} 18. Qd2 {[%emt 0:00:13]}
Nxg2 {[%emt 0:00:02]} 19. Kxg2 {[%emt 0:00:01]} e5 {[%emt 0:00:15]} 20. h3 {
[%emt 0:00:11]} Nd4 {[%emt 0:00:07]} 21. Nxd4 {[%emt 0:00:14]} exd4 {[%emt 0:
00:11]} 22. Ne4 {[%emt 0:00:10]} Bb7 {[%emt 0:00:06]} 23. Kg1 {[%emt 0:00:12]}
Qd5 {[%emt 0:00:06]} 24. g5 {[%emt 0:00:09]} a5 {[%emt 0:00:01]} 25. Bg3 {
[%emt 0:00:04]} Rbe8 {[%emt 0:00:18]} 26. Rbe1 {[%emt 0:00:02]} Re6 {[%emt 0:
00:05]} 27. h4 {[%emt 0:00:08]} Rfe8 {[%emt 0:00:05]} 28. Kh2 {[%emt 0:00:06]}
Qxa2 {[%emt 0:00:04]} 29. Qf2 {[%emt 0:00:09]} Qd5 {[%emt 0:00:04]} 30. Qxf7+ {
[%emt 0:00:02]} Kh8 {[%emt 0:00:02]} 31. Rf2 {[%emt 0:00:17]} Rxe4 {[%emt 0:00:
20]} 32. Qxe8+ {[%emt 0:00:11]} Rxe8 {[%emt 0:00:03]} 33. Rxe8+ {[%emt 0:00:01]
} Bf8 {[%emt 0:00:01]} 34. Rfxf8+ {[%emt 0:00:10]} Kg7 {[%emt 0:00:00]} 35.
Be5+ {[%emt 0:00:02]} Qxe5+ {[%emt 0:00:01]} 36. Rxe5 {[%emt 0:00:01]} Kxf8 {
[%emt 0:00:01]} 37. Rxa5 Ke8 {[%emt 0:00:05]} 38. Rb5 {[%emt 0:00:02]} Bc6 {
[%emt 0:00:07]} 39. Rxb4 {[%emt 0:00:01]} Ke7 {[%emt 0:00:01]} 40. Rxd4 {
[%emt 0:00:02]} Ke6 {[%emt 0:00:00]} 41. Kg3 {[%emt 0:00:02]} 1/2-1/2

[Event "GER-ch Blitz 2019"]
[Site "Magdeburg"]
[Date "2019.05.25"]
[Round "18.3"]
[White "Voege, Tobias"]
[Black "Hebbinghaus, Holger"]
[Result "1-0"]
[ECO "A21"]
[WhiteElo "2294"]
[BlackElo "2310"]
[Annotator "NA"]
[PlyCount "75"]
[EventDate "2019.05.25"]
[EventType "tourn"]
[EventCountry "GER"]
[Tiebreak "Number of wins+Number of black wins"]
[SourceTitle "playchess.com"]
[Source "ChessBase"]
[SourceQuality "1"]
[TimeControl "180+2"]

1. c4 {[%emt 0:00:00]} e5 {[%emt 0:00:00]} 2. Nc3 {[%emt 0:00:01]} d6 {[%emt 0:
00:00]} 3. g3 {[%emt 0:00:01]} f5 {[%emt 0:00:00]} 4. Bg2 {[%emt 0:00:00]} Nf6
{[%emt 0:00:01]} 5. e3 {[%emt 0:00:01]} Be7 {[%emt 0:00:01]} 6. Nge2 {[%emt 0:
00:01]} O-O {[%emt 0:00:01]} 7. O-O {[%emt 0:00:01]} c6 {[%emt 0:00:01]} 8. d4
{[%emt 0:00:02]} e4 {[%emt 0:00:09]} 9. d5 {[%emt 0:00:01]} Na6 {[%emt 0:00:10]
} 10. b3 {[%emt 0:00:12]} c5 {[%emt 0:00:06]} 11. Nf4 {[%emt 0:00:13]} Nc7 {
[%emt 0:00:01]} 12. f3 {[%emt 0:00:12]} exf3 {[%emt 0:00:38]} 13. Bxf3 {
[%emt 0:00:02]} Rb8 {[%emt 0:00:23]} 14. Bb2 {[%emt 0:00:09]} b5 {[%emt 0:00:
13]} 15. cxb5 {[%emt 0:00:07]} Nxb5 {[%emt 0:00:01]} 16. Nxb5 {[%emt 0:00:18]}
Rxb5 {[%emt 0:00:01]} 17. Ne6 {[%emt 0:00:08]} Bxe6 {[%emt 0:00:05]} 18. dxe6 {
[%emt 0:00:01]} Rb6 {[%emt 0:00:27]} 19. Rc1 {[%emt 0:00:15]} Qc8 {[%emt 0:00:
13]} 20. Bxf6 {[%emt 0:00:19]} Rxf6 {[%emt 0:00:05]} 21. Bd5 {[%emt 0:00:01]}
Kh8 {[%emt 0:00:04]} 22. Qe2 {[%emt 0:00:12]} Rb8 {[%emt 0:00:15]} 23. Rc4 {
[%emt 0:00:03]} Qc7 24. Rh4 {[%emt 0:00:14]} g6 {[%emt 0:00:26]} 25. Rhf4 {
[%emt 0:00:15]} Rff8 {[%emt 0:00:02]} 26. e4 {[%emt 0:00:04]} Bf6 {[%emt 0:00:
08]} 27. exf5 {[%emt 0:00:03]} g5 {[%emt 0:00:01]} 28. Re4 {[%emt 0:00:08]} Qe7
{[%emt 0:00:02]} 29. Kg2 {[%emt 0:00:04]} Bd4 {[%emt 0:00:05]} 30. g4 {[%emt 0:
00:04]} Rf6 {[%emt 0:00:01]} 31. h4 {[%emt 0:00:10]} gxh4 {[%emt 0:00:12]} 32.
g5 {[%emt 0:00:05]} Qg7 {[%emt 0:00:01]} 33. Rg4 {[%emt 0:00:02]} Rff8 {
[%emt 0:00:02]} 34. f6 {[%emt 0:00:04]} Qg6 {[%emt 0:00:03]} 35. e7 {[%emt 0:
00:05]} h3+ {[%emt 0:00:09]} 36. Kxh3 {[%emt 0:00:05]} Qh5+ {[%emt 0:00:01]}
37. Kg2 {[%emt 0:00:01]} Rfe8 38. Rh1 1-0

[Event "GER-ch Blitz 2019"]
[Site "Magdeburg"]
[Date "2019.05.25"]
[Round "18.5"]
[White "Wichmann, Cliff"]
[Black "Schneider, Ilja"]
[Result "0-1"]
[ECO "D15"]
[WhiteElo "2280"]
[BlackElo "2494"]
[Annotator "ChessBase"]
[PlyCount "66"]
[EventDate "2019.05.25"]
[EventType "tourn"]
[EventCountry "GER"]
[Tiebreak "Number of wins+Number of black wins"]
[SourceTitle "playchess.com"]
[Source "ChessBase"]
[SourceQuality "1"]
[TimeControl "180+2"]

1. d4 {[%emt 0:00:00]} d5 {[%emt 0:00:00]} 2. Nf3 {[%emt 0:00:01]} Nf6 {
[%emt 0:00:00]} 3. c4 {[%emt 0:00:01]} c6 {[%emt 0:00:00]} 4. Nc3 {[%emt 0:00:
02]} a6 {[%emt 0:00:01]} 5. c5 {[%emt 0:00:02]} Nbd7 {[%emt 0:00:01]} 6. h3 {
[%emt 0:00:02]} Qc7 {[%emt 0:00:01]} 7. Bg5 {[%emt 0:00:02]} h6 {[%emt 0:00:12]
} 8. Bh4 {[%emt 0:00:02]} Nh5 {[%emt 0:00:05]} 9. g4 {[%emt 0:00:22]} g5 {
[%emt 0:00:00]} 10. gxh5 {[%emt 0:00:05]} gxh4 {[%emt 0:00:02]} 11. e4 {
[%emt 0:00:24]} dxe4 {[%emt 0:00:15]} 12. Nxe4 {[%emt 0:00:03]} Qf4 {[%emt 0:
00:10]} 13. Bd3 {[%emt 0:00:08]} Nf6 {[%emt 0:00:12]} 14. Nxf6+ {[%emt 0:00:15]
} Qxf6 {[%emt 0:00:01]} 15. Qe2 {[%emt 0:00:03]} Bf5 {[%emt 0:00:12]} 16. O-O-O
{[%emt 0:00:16]} Rg8 {[%emt 0:00:21]} 17. Bxf5 {[%emt 0:00:32]} Qxf5 {[%emt 0:
00:01]} 18. Qe3 {[%emt 0:00:01]} Qxh5 {[%emt 0:00:10]} 19. Rd2 {[%emt 0:00:11]}
O-O-O {[%emt 0:00:08]} 20. Qf4 {[%emt 0:00:07]} Bg7 {[%emt 0:00:09]} 21. Re1 {
[%emt 0:00:06]} Bf6 {[%emt 0:00:02]} 22. Kc2 {[%emt 0:00:19]} Qd5 {[%emt 0:00:
03]} 23. Kb1 {[%emt 0:00:04]} Bg5 {[%emt 0:00:29]} 24. Nxg5 {[%emt 0:00:06]}
hxg5 {[%emt 0:00:00]} 25. Qe3 {[%emt 0:00:08]} e6 {[%emt 0:00:03]} 26. f4 {
[%emt 0:00:05]} Qf5+ {[%emt 0:00:01]} 27. Ka1 {[%emt 0:00:01]} gxf4 {[%emt 0:
00:03]} 28. Qb3 {[%emt 0:00:02]} f3 {[%emt 0:00:05]} 29. Rf1 {[%emt 0:00:01]}
Rg2 {[%emt 0:00:07]} 30. Rdd1 {[%emt 0:00:04]} f2 {[%emt 0:00:04]} 31. a3 {
[%emt 0:00:03]} Rg3 {[%emt 0:00:08]} 32. Qc4 {[%emt 0:00:02]} Rxh3 {[%emt 0:00:
04]} 33. Rd2 {[%emt 0:00:04]} Rf3 {[%emt 0:00:03]} 0-1

[Event "GER-ch Blitz 2019"]
[Site "Magdeburg"]
[Date "2019.05.25"]
[Round "18.6"]
[White "Carow, Johannes"]
[Black "Koch, Thomas"]
[Result "1/2-1/2"]
[ECO "A05"]
[WhiteElo "2445"]
[BlackElo "2474"]
[Annotator "ChessBase"]
[PlyCount "28"]
[EventDate "2019.05.25"]
[EventType "tourn"]
[EventCountry "GER"]
[Tiebreak "Number of wins+Number of black wins"]
[SourceTitle "playchess.com"]
[Source "ChessBase"]
[SourceQuality "1"]
[TimeControl "180+2"]

1. Nf3 {[%emt 0:00:00]} Nf6 {[%emt 0:00:00]} 2. e3 {[%emt 0:00:02]} b6 {
[%emt 0:00:01]} 3. d4 {[%emt 0:00:03]} Bb7 {[%emt 0:00:01]} 4. c4 {[%emt 0:00:
03]} e6 {[%emt 0:00:02]} 5. Be2 {[%emt 0:00:02]} Bb4+ {[%emt 0:00:03]} 6. Nbd2
{[%emt 0:00:02]} O-O {[%emt 0:00:05]} 7. O-O {[%emt 0:00:03]} Re8 {[%emt 0:00:
04]} 8. a3 {[%emt 0:00:04]} Bf8 {[%emt 0:00:04]} 9. b4 {[%emt 0:00:07]} d6 {
[%emt 0:00:02]} 10. Bb2 {[%emt 0:00:02]} Nbd7 {[%emt 0:00:02]} 11. Qc2 {
[%emt 0:00:05]} c5 {[%emt 0:00:01]} 12. Rfd1 {[%emt 0:00:05]} Qc7 {[%emt 0:00:
01]} 13. Rac1 {[%emt 0:00:06]} Rac8 {[%emt 0:00:04]} 14. Qb1 {[%emt 0:00:07]}
Qb8 {[%emt 0:00:03]} 1/2-1/2

[Event "GER-ch Blitz 2019"]
[Site "Magdeburg"]
[Date "2019.05.25"]
[Round "18.7"]
[White "Baskin, Robert"]
[Black "Schulz, Karsten"]
[Result "1-0"]
[ECO "A45"]
[WhiteElo "2398"]
[BlackElo "2227"]
[Annotator "NA"]
[PlyCount "81"]
[EventDate "2019.05.25"]
[EventType "tourn"]
[EventCountry "GER"]
[Tiebreak "Number of wins+Number of black wins"]
[SourceTitle "playchess.com"]
[Source "ChessBase"]
[SourceQuality "1"]
[TimeControl "180+2"]

1. d4 {[%emt 0:00:00]} Nf6 {[%emt 0:00:00]} 2. Bf4 {[%emt 0:00:00]} g6 {
[%emt 0:00:01]} 3. Nc3 {[%emt 0:00:01]} d6 {[%emt 0:00:02]} 4. e4 {[%emt 0:00:
01]} Bg7 {[%emt 0:00:02]} 5. Qd2 {[%emt 0:00:01]} d5 {[%emt 0:00:11]} 6. e5 {
[%emt 0:00:05]} Ne4 {[%emt 0:00:01]} 7. Nxe4 {[%emt 0:00:01]} dxe4 {[%emt 0:00:
02]} 8. Bc4 {[%emt 0:00:01]} c5 {[%emt 0:00:41]} 9. d5 {[%emt 0:00:07]} O-O {
[%emt 0:00:25]} 10. Ne2 {[%emt 0:00:05]} Nd7 {[%emt 0:00:05]} 11. Ng3 {[%emt 0:
01:05]} Nxe5 {[%emt 0:00:06]} 12. Bxe5 {[%emt 0:00:02]} Bxe5 {[%emt 0:00:01]}
13. Nxe4 {[%emt 0:00:01]} Bxb2 {[%emt 0:00:15]} 14. Rb1 {[%emt 0:00:01]} Bg7 {
[%emt 0:00:02]} 15. h4 {[%emt 0:00:12]} h5 {[%emt 0:00:19]} 16. Qg5 {[%emt 0:
00:07]} Qa5+ {[%emt 0:00:25]} 17. Kf1 {[%emt 0:00:06]} Bf5 {[%emt 0:00:02]} 18.
Ng3 {[%emt 0:00:28]} Bxc2 {[%emt 0:00:07]} 19. Rxb7 {[%emt 0:00:02]} Qc3 {
[%emt 0:00:07]} 20. Bb3 {[%emt 0:00:19]} Bd3+ {[%emt 0:00:07]} 21. Kg1 {
[%emt 0:00:02]} c4 {[%emt 0:00:01]} 22. Bd1 {[%emt 0:00:09]} Bf6 {[%emt 0:00:
01]} 23. Qe3 {[%emt 0:00:05]} Rab8 {[%emt 0:00:07]} 24. Rxb8 {[%emt 0:00:15]}
Rxb8 {[%emt 0:00:02]} 25. Qxa7 {[%emt 0:00:04]} Rb1 {[%emt 0:00:05]} 26. Kh2 {
[%emt 0:00:01]} Qd4 {[%emt 0:00:08]} 27. Qxd4 {[%emt 0:00:07]} Bxd4 {[%emt 0:
00:01]} 28. Be2 {[%emt 0:00:08]} Bxf2 {[%emt 0:00:14]} 29. Rxb1 {[%emt 0:00:03]
} Bxg3+ {[%emt 0:00:06]} 30. Kxg3 {[%emt 0:00:02]} Bxb1 {[%emt 0:00:01]} 31.
Bxc4 {[%emt 0:00:01]} Kf8 {[%emt 0:00:05]} 32. a4 {[%emt 0:00:03]} Ke8 {
[%emt 0:00:02]} 33. a5 {[%emt 0:00:02]} Kd8 {[%emt 0:00:02]} 34. d6 {[%emt 0:
00:08]} e6 {[%emt 0:00:05]} 35. a6 {[%emt 0:00:00]} Be4 {[%emt 0:00:02]} 36.
Bb5 {[%emt 0:00:02]} f6 {[%emt 0:00:04]} 37. Kf2 {[%emt 0:00:01]} g5 {[%emt 0:
00:01]} 38. hxg5 {[%emt 0:00:01]} fxg5 {[%emt 0:00:01]} 39. Ke3 {[%emt 0:00:01]
} Bxg2 {[%emt 0:00:03]} 40. Kd4 {[%emt 0:00:02]} Bd5 {[%emt 0:00:02]} 41. Kc5 {
[%emt 0:00:08]} 1-0